[Event "EYCC Girls-U18 2019"]
[Site "Bratislava"]
[Date "2019.08.08"]
[Round "7.24"]
[White "Koridze, Lile"]
[Black "Karatiken, Seray"]
[Result "1-0"]
[ECO "A40"]
[WhiteElo "1950"]
[BlackElo "1764"]
[Annotator "NA"]
[PlyCount "112"]
[EventDate "2019.08.02"]
[EventType "swiss"]
[EventCountry "SVK"]
[SourceTitle "playchess.com"]
[Source "ChessBase"]
[SourceQuality "1"]
[TimeControl "40/5400+30:1800+30"]

1. d4 {[%emt 0:00:00]} Nf6 {[%emt 0:00:00]} 2. c4 {[%emt 0:00:00]} e6 {[%emt 0:00:00]} 3. g3 {[%emt 0:00:00]} Bb4+ {[%emt 0:00:00]} 4. Bd2 {[%emt 0:00:00]} Qe7 {[%emt 0:00:07]} 5. Bg2 {[%emt 0:00:15]} Bxd2+ 6. Qxd2 {[%emt 0:00:30]} d6 7. Nf3 {[%emt 0:00:30]} O-O 8. O-O {[%emt 0:00:30]} e5 9. Nc3 c6 10. dxe5 {[%emt 0:18:54]} dxe5 {[%emt 0:10:29]} 11. Ng5 {[%emt 0:01:55]} h6 {[%emt 0:03:53]} 12. Nge4 {[%emt 0:00:22]} Nxe4 {[%emt 0:02:04]} 13. Nxe4 {[%emt 0:00:08]} Na6 {[%emt 0:03:49]} 14. Rfd1 {[%emt 0:03:58]} Be6 {[%emt 0:12:17]} 15. Qc3 {[%emt 0:07:17]} Qb4 {[%emt 0:06:34]} 16. Qxe5 {[%emt 0:02:37]} Qxc4 {[%emt 0:08:09]} 17. b3 {[%emt 0:10:10]} Qb4 {[%emt 0:01:51]} 18. Rd4 {[%emt 0:02:42]} Qe7 {[%emt 0:06:50]} 19. Rad1 {[%emt 0:02:21]} Rad8 {[%emt 0:03:15]} 20. Nd6 {[%emt 0:08:12]} Rd7 {[%emt 0:04:53]} 21. e3 {[%emt 0:14:08]} Qg5 {[%emt 0:01:59]} 22. Qxg5 {[%emt 0:03:24]} hxg5 {[%emt 0:00:02]} 23. Ne4 {[%emt 0:02:29]} Rxd4 {[%emt 0:00:36]} 24. Rxd4 {[%emt 0:00:06]} f6 {[%emt 0:01:59]} 25. Nd6 {[%emt 0:01:11]} Rb8 {[%emt 0:06:05]} 26. Be4 {[%emt 0:02:19]} Kf8 {[%emt 0:02:23]} 27. Kg2 {[%emt 0:01:30]} Ke7 {[%emt 0:00:31]} 28. Nf5+ {[%emt 0:00:51]} Kf7 {[%emt 0:01:40]} 29. g4 {[%emt 0:03:57]} Nc5 {[%emt 0:01:28]} 30. Bc2 {[%emt 0:00:35]} a5 {[%emt 0:04:42]} 31. Kg3 {[%emt 0:01:53]} Rh8 {[%emt 0:08:02]} 32. Nd6+ {[%emt 0:01:36]} Ke7 {[%emt 0:01:10]} 33. Nf5+ {[%emt 0:00:37]} Kf7 {[%emt 0:00:14]} 34. a3 {[%emt 0:01:36]} g6 {[%emt 0:07:26]} 35. Nd6+ {[%emt 0:00:07]} Kg7 {[%emt 0:01:11]} 36. b4 {[%emt 0:00:09]} axb4 {[%emt 0:01:21]} 37. axb4 {[%emt 0:00:04]} Na6 {[%emt 0:01:12]} 38. Re4 {[%emt 0:04:28]} Nc7 {[%emt 0:01:17]} 39. Nxb7 {[%emt 0:00:14]} f5 {[%emt 0:00:31]} 40. Re5 {[%emt 0:00:00]} fxg4 {[%emt 0:00:00]} 41. Rxg5 {[%emt 0:02:12]} Rh6 {[%emt 0:05:18]} 42. Nc5 {[%emt 0:02:20]} Bc8 {[%emt 0:00:54]} 43. Re5 {[%emt 0:10:05]} Nd5 {[%emt 0:07:54]} 44. Re8 {[%emt 0:07:35]} Rh3+ {[%emt 0:15:54]} 45. Kg2 {[%emt 0:00:09]} Rh8 {[%emt 0:02:18]} 46. Rxh8 {[%emt 0:02:40]} Kxh8 {[%emt 0:00:01]} 47. Bxg6 {[%emt 0:00:09]} Nxb4 {[%emt 0:00:16]} 48. Kg3 {[%emt 0:00:23]} Nd5 {[%emt 0:01:40]} 49. Be4 {[%emt 0:01:19]} Kg7 {[%emt 0:00:53]} 50. Bxd5 {[%emt 0:00:50]} cxd5 {[%emt 0:00:06]} 51. Kf4 {[%emt 0:00:05]} Kf6 {[%emt 0:00:15]} 52. Nd3 {[%emt 0:00:11]} Kg6 {[%emt 0:00:58]} 53. Ke5 {[%emt 0:00:12]} Bb7 {[%emt 0:00:10]} 54. Nf4+ {[%emt 0:00:40]} Kg5 {[%emt 0:00:20]} 55. Nxd5 {[%emt 0:01:23]} Kh4 {[%emt 0:00:15]} 56. Nf4 {[%emt 0:00:15]} Ba8 {[%emt 0:01:46] Ke4} 1-0

[Event "EYCC Girls-U18 2019"]
[Site "Bratislava"]
[Date "2019.08.09"]
[Round "8.1"]
[White "Muetsch, Annmarie"]
[Black "Badelka, Olga"]
[Result "1/2-1/2"]
[ECO "B24"]
[WhiteElo "2266"]
[BlackElo "2386"]
[Annotator "NA"]
[PlyCount "62"]
[EventDate "2019.08.02"]
[EventType "swiss"]
[EventCountry "SVK"]
[SourceTitle "playchess.com"]
[Source "ChessBase"]
[SourceQuality "1"]
[TimeControl "40/5400+30:1800+30"]

1. e4 {[%emt 0:00:00]} c5 {[%emt 0:00:00]} 2. Nc3 {[%emt 0:00:00]} Nc6 {[%emt 0:00:00]} 3. Bb5 {[%emt 0:00:00]} Nd4 {[%emt 0:00:48]} 4. Nf3 {[%emt 0:00:01]} Nxb5 {[%emt 0:03:29]} 5. Nxb5 {[%emt 0:00:06]} a6 {[%emt 0:01:02]} 6. Nc3 {[%emt 0:00:08]} d6 {[%emt 0:00:27]} 7. d4 {[%emt 0:00:10]} cxd4 {[%emt 0:00:16]} 8. Qxd4 {[%emt 0:00:05]} e5 {[%emt 0:05:31]} 9. Qd3 {[%emt 0:00:09]} Be7 {[%emt 0:01:58]} 10. Nd2 {[%emt 0:02:36]} Be6 {[%emt 0:03:43]} 11. Nc4 {[%emt 0:03:59]} Rc8 {[%emt 0:00:20]} 12. Ne3 {[%emt 0:14:09]} Bg5 {[%emt 0:08:32]} 13. O-O {[%emt 0:11:05]} Ne7 {[%emt 0:00:28]} 14. Nf5 {[%emt 0:20:07]} Nxf5 {[%emt 0:01:45]} 15. Bxg5 {[%emt 0:00:27]} Qxg5 {[%emt 0:00:05]} 16. exf5 {[%emt 0:00:04]} Bxf5 {[%emt 0:05:41]} 17. Qxd6 {[%emt 0:00:08]} Qe7 {[%emt 0:00:13]} 18. Qxe7+ {[%emt 0:02:08]} Kxe7 {[%emt 0:00:04]} 19. Rfe1 {[%emt 0:02:21]} f6 {[%emt 0:00:23]} 20. f4 {[%emt 0:01:18]} Rc5 {[%emt 0:04:02]} 21. fxe5 {[%emt 0:06:12]} fxe5 {[%emt 0:02:03]} 22. Re2 {[%emt 0:06:40]} Rd8 {[%emt 0:01:21]} 23. Rae1 {[%emt 0:02:36]} Ke6 {[%emt 0:01:15]} 24. Ne4 {[%emt 0:02:40]} Bxe4 {[%emt 0:16:31]} 25. Rxe4 {[%emt 0:00:04]} Rd2 {[%emt 0:00:10]} 26. R1e2 {[%emt 0:00:15]} Rdxc2 {[%emt 0:04:17]} 27. Rxe5+ {[%emt 0:00:09]} Rxe5 {[%emt 0:00:03]} 28. Rxc2 {[%emt 0:00:07]} Kd6 {[%emt 0:01:03]} 29. Kf2 {[%emt 0:00:41]} b5 {[%emt 0:00:31]} 30. b4 {[%emt 0:01:43]} Re4 {[%emt 0:04:23]} 31. a3 {[%emt 0:01:28]} Rf4+ {[%emt 0:05:23]} 1/2-1/2

[Event "EYCC Girls-U18 2019"]
[Site "Bratislava"]
[Date "2019.08.09"]
[Round "8.2"]
[White "Kucharska, Honorata"]
[Black "Sliwicka, Alicja"]
[Result "0-1"]
[ECO "A45"]
[WhiteElo "2054"]
[BlackElo "2261"]
[Annotator "NA"]
[PlyCount "124"]
[EventDate "2019.08.02"]
[EventType "swiss"]
[EventCountry "SVK"]
[SourceTitle "playchess.com"]
[Source "ChessBase"]
[SourceQuality "1"]
[TimeControl "40/5400+30:1800+30"]

1. d4 {[%emt 0:00:00]} Nf6 {[%emt 0:00:00]} 2. Bf4 {[%emt 0:00:00]} d5 {[%emt 0:00:00]} 3. e3 {[%emt 0:00:04]} c5 {[%emt 0:00:00]} 4. Nf3 {[%emt 0:00:21]} Nc6 {[%emt 0:00:40]} 5. c3 {[%emt 0:00:50]} Qb6 {[%emt 0:01:23]} 6. Qb3 {[%emt 0:02:00]} c4 {[%emt 0:00:36]} 7. Qxb6 {[%emt 0:03:21]} axb6 {[%emt 0:00:10]} 8. Nbd2 {[%emt 0:03:05]} b5 {[%emt 0:00:36]} 9. Ne5 {[%emt 0:01:11]} Bf5 {[%emt 0:03:57]} 10. f3 {[%emt 0:01:06]} h6 {[%emt 0:07:43]} 11. g4 {[%emt 0:02:31]} Bh7 {[%emt 0:01:07]} 12. h4 {[%emt 0:03:22]} e6 {[%emt 0:04:37]} 13. g5 {[%emt 0:08:24]} Nh5 {[%emt 0:02:07]} 14. Kf2 {[%emt 0:03:43]} Nxf4 {[%emt 0:03:53]} 15. exf4 {[%emt 0:08:51]} b4 {[%emt 0:02:07]} 16. g6 {[%emt 0:04:37]} Nxe5 {[%emt 0:04:20]} 17. gxh7 {[%emt 0:00:04]} Ng6 {[%emt 0:02:40]} 18. f5 {[%emt 0:01:22]} Nf4 {[%emt 0:04:03]} 19. fxe6 {[%emt 0:02:39]} fxe6 {[%emt 0:05:19]} 20. Ke3 {[%emt 0:01:10]} Nh5 {[%emt 0:01:20]} 21. Bh3 {[%emt 0:01:20]} Bd6 {[%emt 0:02:15]} 22. Rhg1 {[%emt 0:12:40]} Kf7 {[%emt 0:04:06]} 23. cxb4 {[%emt 0:03:24]} Bxb4 {[%emt 0:02:20]} 24. f4 {[%emt 0:06:13]} Bd6 {[%emt 0:05:20]} 25. Bg4 {[%emt 0:06:07]} Nf6 {[%emt 0:03:57]} 26. Bd1 {[%emt 0:04:34]} Rxh7 {[%emt 0:08:40]} 27. Nf3 {[%emt 0:00:58]} Ng8 {[%emt 0:04:20]} 28. Bc2 {[%emt 0:01:53]} Rh8 {[%emt 0:00:29]} 29. Bg6+ {[%emt 0:01:14]} Kf8 {[%emt 0:02:42]} 30. h5 {[%emt 0:01:04]} Nf6 {[%emt 0:06:04]} 31. Ne5 {[%emt 0:00:36]} Ke7 {[%emt 0:00:46]} 32. a3 {[%emt 0:03:13]} Rhc8 {[%emt 0:00:48]} 33. Bc2 {[%emt 0:02:01]} Kf8 {[%emt 0:01:22]} 34. Ng6+ {[%emt 0:01:51]} Kg8 {[%emt 0:00:24]} 35. Ne5 {[%emt 0:00:07]} b5 {[%emt 0:01:43]} 36. Rg6 {[%emt 0:03:56]} Rc7 {[%emt 0:00:26]} 37. Rag1 {[%emt 0:05:03]} Kf8 {[%emt 0:00:15]} 38. Ng4 {[%emt 0:00:53]} Nxg4+ {[%emt 0:06:55]} 39. R1xg4 {[%emt 0:00:12]} Re8 {[%emt 0:01:13]} 40. Rg1 {[%emt 0:00:00]} Rf7 {[%emt 0:00:00]} 41. R6g4 {[%emt 0:01:33]} Ra8 {[%emt 0:04:39]} 42. Bg6 {[%emt 0:00:55]} Rc7 {[%emt 0:01:41]} 43. Rc1 {[%emt 0:02:12]} Be7 {[%emt 0:03:18]} 44. Rc2 {[%emt 0:10:28]} Bf6 {[%emt 0:01:04]} 45. Rg1 {[%emt 0:01:29]} Rb7 {[%emt 0:00:48]} 46. Rf1 {[%emt 0:02:35]} b4 {[%emt 0:01:07]} 47. axb4 {[%emt 0:01:08]} Rxb4 {[%emt 0:00:13]} 48. f5 {[%emt 0:00:44]} e5 {[%emt 0:00:57]} 49. dxe5 {[%emt 0:00:58]} Bxe5 {[%emt 0:00:06]} 50. Rd1 {[%emt 0:00:11]} Ra5 {[%emt 0:02:30]} 51. Rcd2 {[%emt 0:03:54]} Bf4+ {[%emt 0:03:02]} 52. Kxf4 {[%emt 0:00:19]} c3+ {[%emt 0:00:14]} 53. Ke5 {[%emt 0:00:51]} cxd2 {[%emt 0:01:17]} 54. Rxd2 {[%emt 0:00:05]} Ke7 {[%emt 0:01:00]} 55. Re2 {[%emt 0:01:21]} Re4+ {[%emt 0:00:28]} 56. Rxe4 {[%emt 0:00:05]} dxe4+ {[%emt 0:00:03]} 57. Kxe4 {[%emt 0:00:04]} Rb5 {[%emt 0:00:12]} 58. Kd4 {[%emt 0:00:59]} Rxb2 {[%emt 0:00:10]} 59. Ke5 {[%emt 0:00:30]} Rb5+ {[%emt 0:00:09]} 60. Kd4 {[%emt 0:00:18]} Kf6 {[%emt 0:00:11]} 61. Ke4 {[%emt 0:00:09]} Rb4+ {[%emt 0:00:30]} 62. Kd5 {[%emt 0:00:05]} Rf4 {[%emt 0:00:16] Kd4 Ke5+} 0-1

[Event "EYCC Girls-U18 2019"]
[Site "Bratislava"]
[Date "2019.08.09"]
[Round "8.3"]
[White "Grigorieva, Yulia"]
[Black "Afonasieva, Anna"]
[Result "1-0"]
[ECO "D10"]
[WhiteElo "2096"]
[BlackElo "2370"]
[Annotator "NA"]
[PlyCount "87"]
[EventDate "2019.08.02"]
[EventType "swiss"]
[EventCountry "SVK"]
[SourceTitle "playchess.com"]
[Source "ChessBase"]
[SourceQuality "1"]
[TimeControl "40/5400+30:1800+30"]

1. d4 {[%emt 0:00:00]} d5 {[%emt 0:00:00]} 2. c4 {[%emt 0:00:00]} c6 {[%emt 0:00:00]} 3. cxd5 {[%emt 0:00:00]} cxd5 {[%emt 0:00:00]} 4. Nc3 {[%emt 0:00:00]} Nf6 {[%emt 0:00:00]} 5. Bf4 {[%emt 0:00:26]} Nc6 {[%emt 0:01:03]} 6. e3 {[%emt 0:00:55]} Bf5 {[%emt 0:00:10]} 7. Qb3 {[%emt 0:01:18]} Na5 {[%emt 0:00:18]} 8. Qa4+ {[%emt 0:00:31]} Bd7 {[%emt 0:00:05]} 9. Qc2 {[%emt 0:00:09]} Rc8 {[%emt 0:00:22]} 10. Bd3 {[%emt 0:02:28]} e6 {[%emt 0:04:46]} 11. Nf3 {[%emt 0:03:19]} Bb4 {[%emt 0:02:04]} 12. O-O {[%emt 0:06:26]} O-O {[%emt 0:00:32]} 13. Ne5 {[%emt 0:06:26]} Nc6 {[%emt 0:10:38]} 14. Bg5 {[%emt 0:14:39]} Nxe5 {[%emt 0:08:46]} 15. dxe5 {[%emt 0:11:37]} h6 {[%emt 0:00:21]} 16. Bh4 {[%emt 0:01:36]} g5 {[%emt 0:00:09]} 17. Bg3 {[%emt 0:00:56]} Nh5 {[%emt 0:03:21]} 18. f4 {[%emt 0:09:50]} Nxg3 {[%emt 0:04:24]} 19. hxg3 {[%emt 0:02:34]} Qb6 {[%emt 0:00:53]} 20. Qe2 {[%emt 0:05:02]} Bxc3 {[%emt 0:06:14]} 21. bxc3 {[%emt 0:01:03]} Rxc3 {[%emt 0:05:44]} 22. Rab1 {[%emt 0:02:16]} Qc5 {[%emt 0:05:45]} 23. fxg5 {[%emt 0:02:40]} hxg5 {[%emt 0:05:11]} 24. Rf6 {[%emt 0:04:27]} Kg7 {[%emt 0:24:09]} 25. Qh5 {[%emt 0:10:58]} Qxe3+ {[%emt 0:07:48]} 26. Kh1 {[%emt 0:01:06]} Qxd3 {[%emt 0:07:27]} 27. Qxg5+ {[%emt 0:01:29]} Qg6 {[%emt 0:00:11]} 28. Rxg6+ {[%emt 0:01:19]} fxg6 {[%emt 0:00:04]} 29. Rxb7 {[%emt 0:00:34]} Rf7 {[%emt 0:00:47]} 30. Rxa7 {[%emt 0:03:42]} Rc8 {[%emt 0:02:15]} 31. g4 {[%emt 0:02:55]} Rcf8 {[%emt 0:01:00]} 32. Kh2 {[%emt 0:02:21]} Rh8+ {[%emt 0:00:37]} 33. Kg3 {[%emt 0:00:45]} Rc8 {[%emt 0:00:11]} 34. a4 {[%emt 0:00:43]} d4 {[%emt 0:00:31]} 35. a5 {[%emt 0:01:37]} d3 {[%emt 0:00:52]} 36. a6 {[%emt 0:00:57]} Rc3 {[%emt 0:00:40]} 37. Kh2 {[%emt 0:00:41]} Rc5 {[%emt 0:00:30]} 38. Rb7 {[%emt 0:00:36]} Rd5 {[%emt 0:00:11]} 39. a7 {[%emt 0:00:29]} d2 {[%emt 0:00:32]} 40. a8=Q {[%emt 0:00:00]} d1=Q {[%emt 0:00:00]} 41. Qh4 {[%emt 0:05:43]} Bc8 {[%emt 0:06:15]} 42. Rxf7+ {[%emt 0:01:13]} Kxf7 {[%emt 0:00:06]} 43. Qf6+ {[%emt 0:00:14]} Ke8 {[%emt 0:00:22]} 44. Qxc8+ {[%emt 0:00:12]} 1-0

[Event "EYCC Girls-U18 2019"]
[Site "Bratislava"]
[Date "2019.08.09"]
[Round "8.4"]
[White "Goltseva, Ekaterina"]
[Black "Antova, Gabriela"]
[Result "1-0"]
[ECO "D45"]
[WhiteElo "2304"]
[BlackElo "2257"]
[Annotator "NA"]
[PlyCount "89"]
[EventDate "2019.08.02"]
[EventType "swiss"]
[EventCountry "SVK"]
[SourceTitle "playchess.com"]
[Source "ChessBase"]
[SourceQuality "1"]
[TimeControl "40/5400+30:1800+30"]

1. Nf3 {[%emt 0:00:00]} d5 {[%emt 0:00:08]} 2. c4 {[%emt 0:00:00]} c6 {[%emt 0:01:30]} 3. e3 {[%emt 0:00:26]} Nf6 {[%emt 0:00:22]} 4. Nc3 {[%emt 0:00:17]} e6 {[%emt 0:01:27]} 5. d4 {[%emt 0:00:22]} Nbd7 {[%emt 0:00:14]} 6. Qc2 {[%emt 0:00:21]} Bd6 {[%emt 0:00:39]} 7. Bd3 {[%emt 0:00:19]} O-O {[%emt 0:00:57]} 8. O-O {[%emt 0:00:12]} dxc4 {[%emt 0:02:34]} 9. Bxc4 {[%emt 0:00:06]} b5 {[%emt 0:00:13]} 10. Be2 {[%emt 0:00:34]} Bb7 {[%emt 0:00:11]} 11. Rd1 {[%emt 0:00:37]} Qc7 {[%emt 0:03:41]} 12. e4 {[%emt 0:01:31]} e5 {[%emt 0:00:24]} 13. dxe5 {[%emt 0:00:25]} Nxe5 {[%emt 0:00:13]} 14. Nd4 {[%emt 0:00:06]} Ng6 {[%emt 0:11:27]} 15. g3 {[%emt 0:02:52]} a6 {[%emt 0:04:16]} 16. Be3 {[%emt 0:16:05]} Rfe8 {[%emt 0:10:53]} 17. Nf5 {[%emt 0:10:30]} Be5 {[%emt 0:09:17]} 18. Bc5 {[%emt 0:14:41]} Rad8 {[%emt 0:20:03]} 19. f4 {[%emt 0:09:46]} Bxc3 {[%emt 0:05:44]} 20. Qxc3 {[%emt 0:00:26]} Bc8 {[%emt 0:00:58]} 21. Rxd8 {[%emt 0:13:42]} Rxd8 {[%emt 0:01:02]} 22. Qe3 {[%emt 0:01:45]} Qb8 {[%emt 0:13:10]} 23. Bf3 {[%emt 0:04:58]} Bxf5 {[%emt 0:01:37]} 24. exf5 {[%emt 0:00:04]} Re8 {[%emt 0:01:11]} 25. Qa3 {[%emt 0:01:45]} Nxf4 {[%emt 0:03:55]} 26. gxf4 {[%emt 0:00:34]} Qxf4 {[%emt 0:00:07]} 27. Qd3 {[%emt 0:05:37]} h5 {[%emt 0:03:34]} 28. Rf1 {[%emt 0:02:17]} Re5 {[%emt 0:00:34]} 29. Bd4 {[%emt 0:02:09]} Qg5+ {[%emt 0:00:32]} 30. Bg2 {[%emt 0:01:13]} Rd5 {[%emt 0:00:38]} 31. Kh1 {[%emt 0:00:15]} Rd6 {[%emt 0:00:50]} 32. Bxf6 {[%emt 0:02:56]} Qxf6 {[%emt 0:00:13]} 33. Qe3 {[%emt 0:02:13]} Qxb2 {[%emt 0:00:45]} 34. Qe8+ {[%emt 0:00:06]} Kh7 {[%emt 0:00:05]} 35. Qxf7 {[%emt 0:00:55]} Rf6 {[%emt 0:00:14]} 36. Qxh5+ {[%emt 0:00:16]} Rh6 {[%emt 0:00:19]} 37. Qg5 {[%emt 0:01:47]} Qe5 {[%emt 0:01:30]} 38. h3 {[%emt 0:00:36]} c5 {[%emt 0:00:10]} 39. Qd2 {[%emt 0:00:47]} c4 {[%emt 0:00:10]} 40. Re1 {[%emt 0:00:00]} Qg3 {[%emt 0:00:00]} 41. Re3 {[%emt 0:12:01]} Qf4 {[%emt 0:02:25]} 42. Qe1 {[%emt 0:00:27]} Qd4 {[%emt 0:03:14]} 43. Rg3 {[%emt 0:05:59]} Rd6 {[%emt 0:02:27]} 44. Qe7 {[%emt 0:04:16]} Rd7 {[%emt 0:09:42]} 45. Qe8 {[%emt 0:00:45]} 1-0

[Event "EYCC Girls-U18 2019"]
[Site "Bratislava"]
[Date "2019.08.09"]
[Round "8.5"]
[White "Sargsyan, Anna M."]
[Black "Beydullayeva, Govhar"]
[Result "1/2-1/2"]
[ECO "A48"]
[WhiteElo "2229"]
[BlackElo "2282"]
[Annotator "NA"]
[PlyCount "120"]
[EventDate "2019.08.02"]
[EventType "swiss"]
[EventCountry "SVK"]
[SourceTitle "playchess.com"]
[Source "ChessBase"]
[SourceQuality "1"]
[TimeControl "40/5400+30:1800+30"]

1. d4 {[%emt 0:00:00]} Nf6 {[%emt 0:00:00]} 2. Nf3 {[%emt 0:00:04]} g6 {[%emt 0:00:26]} 3. Bg5 {[%emt 0:00:16]} Bg7 {[%emt 0:00:05]} 4. Nbd2 {[%emt 0:00:16]} O-O {[%emt 0:00:26]} 5. c3 {[%emt 0:00:05]} d6 {[%emt 0:00:25]} 6. e4 {[%emt 0:00:05]} c5 {[%emt 0:00:09]} 7. d5 {[%emt 0:00:04]} h6 {[%emt 0:00:15]} 8. Bh4 {[%emt 0:00:06]} e6 {[%emt 0:01:24]} 9. dxe6 {[%emt 0:00:05]} Bxe6 {[%emt 0:00:03]} 10. Bxf6 {[%emt 0:01:00]} Qxf6 {[%emt 0:02:39]} 11. Bc4 {[%emt 0:01:05]} Re8 {[%emt 0:03:29]} 12. O-O {[%emt 0:00:53]} Nd7 {[%emt 0:02:49]} 13. Re1 {[%emt 0:03:03]} Qd8 {[%emt 0:06:05]} 14. Qc2 {[%emt 0:04:11]} Qc7 {[%emt 0:03:21]} 15. a4 {[%emt 0:04:41]} Rad8 {[%emt 0:02:23]} 16. a5 {[%emt 0:01:46]} a6 {[%emt 0:03:09]} 17. Bf1 {[%emt 0:09:58]} d5 {[%emt 0:09:12]} 18. exd5 {[%emt 0:02:20]} Bxd5 {[%emt 0:00:04]} 19. Bc4 {[%emt 0:00:34]} Nf6 {[%emt 0:06:20]} 20. Qb3 {[%emt 0:10:41]} Bc6 {[%emt 0:11:06]} 21. Qc2 {[%emt 0:09:13]} Nd5 {[%emt 0:18:56]} 22. g3 {[%emt 0:08:23]} Qd7 {[%emt 0:02:20]} 23. Rxe8+ {[%emt 0:08:52]} Rxe8 {[%emt 0:00:17]} 24. Qd3 {[%emt 0:03:50]} Kf8 {[%emt 0:09:35]} 25. Rd1 {[%emt 0:03:45]} Nf6 {[%emt 0:03:20]} 26. Qf1 {[%emt 0:08:44]} Qc7 {[%emt 0:04:58]} 27. Nh4 {[%emt 0:01:55]} Qe5 {[%emt 0:08:35]} 28. Qd3 {[%emt 0:04:56]} Qh5 {[%emt 0:00:37]} 29. Nf1 {[%emt 0:00:51]} Ne4 {[%emt 0:00:51]} 30. f3 {[%emt 0:05:10]} Ng5 {[%emt 0:00:39]} 31. Kg2 {[%emt 0:00:56]} Ne6 {[%emt 0:00:37]} 32. Kf2 {[%emt 0:05:10]} Bf6 {[%emt 0:00:29]} 33. Ng2 {[%emt 0:00:41]} Rd8 {[%emt 0:00:41]} 34. Qe2 {[%emt 0:00:14]} Rxd1 {[%emt 0:00:18]} 35. Qxd1 {[%emt 0:00:01]} Qe5 {[%emt 0:00:28]} 36. Nge3 {[%emt 0:01:02]} h5 {[%emt 0:00:45]} 37. Bd5 {[%emt 0:01:13]} Bxd5 {[%emt 0:00:24]} 38. Qxd5 {[%emt 0:00:27]} Qxd5 {[%emt 0:00:29]} 39. Nxd5 {[%emt 0:00:02]} Bd8 {[%emt 0:00:05]} 40. b4 {[%emt 0:00:00]} Ke8 {[%emt 0:00:00]} 41. Ke3 {[%emt 0:02:25]} Kd7 {[%emt 0:08:51]} 42. Kd3 {[%emt 0:03:24]} Kd6 {[%emt 0:01:48]} 43. Kc4 {[%emt 0:04:31]} cxb4 {[%emt 0:04:25]} 44. cxb4 {[%emt 0:00:21]} h4 {[%emt 0:03:55]} 45. Nd2 {[%emt 0:03:41]} f5 {[%emt 0:06:07]} 46. f4 {[%emt 0:02:16]} g5 {[%emt 0:04:17]} 47. Nf3 {[%emt 0:01:37]} hxg3 {[%emt 0:02:54]} 48. hxg3 {[%emt 0:00:02]} gxf4 {[%emt 0:00:16]} 49. gxf4 {[%emt 0:00:05]} Bc7 {[%emt 0:02:39]} 50. Ng5 {[%emt 0:07:24]} Nxg5 {[%emt 0:00:44]} 51. fxg5 {[%emt 0:00:01]} Bb8 {[%emt 0:00:07]} 52. g6 {[%emt 0:03:07]} Ke6 {[%emt 0:00:04]} 53. g7 {[%emt 0:00:05]} Kf7 {[%emt 0:00:00]} 54. Ne7 {[%emt 0:00:26]} Kxg7 {[%emt 0:00:06]} 55. Nxf5+ {[%emt 0:00:05]} Kf6 {[%emt 0:00:16]} 56. Nd4 {[%emt 0:00:59]} Ke7 {[%emt 0:00:41]} 57. Nb3 {[%emt 0:01:19]} Kd6 {[%emt 0:00:37]} 58. b5 {[%emt 0:00:05]} axb5+ {[%emt 0:00:23]} 59. Kxb5 {[%emt 0:00:02]} Bc7 {[%emt 0:00:03]} 60. a6 {[%emt 0:00:04]} bxa6+ {[%emt 0:00:01]} 1/2-1/2

[Event "EYCC Girls-U18 2019"]
[Site "Bratislava"]
[Date "2019.08.09"]
[Round "8.6"]
[White "Rudzinska, Michalina"]
[Black "Schneider, Jana"]
[Result "0-1"]
[ECO "C77"]
[WhiteElo "2143"]
[BlackElo "2216"]
[Annotator "NA"]
[PlyCount "68"]
[EventDate "2019.08.02"]
[EventType "swiss"]
[EventCountry "SVK"]
[SourceTitle "playchess.com"]
[Source "ChessBase"]
[SourceQuality "1"]
[TimeControl "40/5400+30:1800+30"]

1. e4 {[%emt 0:00:00]} e5 {[%emt 0:00:00]} 2. Nf3 {[%emt 0:00:00]} Nc6 {[%emt 0:00:00]} 3. Bb5 {[%emt 0:00:00]} a6 {[%emt 0:00:00]} 4. Ba4 {[%emt 0:00:00]} Nf6 {[%emt 0:00:00]} 5. Qe2 {[%emt 0:00:00]} b5 {[%emt 0:00:09]} 6. Bb3 {[%emt 0:00:06]} Be7 {[%emt 0:00:12]} 7. c3 {[%emt 0:00:13]} O-O {[%emt 0:00:13]} 8. O-O {[%emt 0:00:08]} d5 {[%emt 0:00:08]} 9. d3 {[%emt 0:00:39]} Re8 {[%emt 0:00:13]} 10. Rd1 {[%emt 0:02:45]} Bb7 {[%emt 0:00:59]} 11. Nbd2 {[%emt 0:02:17]} Bf8 {[%emt 0:01:21]} 12. Nf1 {[%emt 0:02:08]} h6 {[%emt 0:00:40]} 13. Ng3 {[%emt 0:03:59]} Na5 {[%emt 0:01:32]} 14. Bc2 {[%emt 0:00:11]} c5 {[%emt 0:00:30]} 15. Nf5 {[%emt 0:06:03]} Qc7 {[%emt 0:01:41]} 16. N3h4 {[%emt 0:04:18]} Rad8 {[%emt 0:03:25]} 17. Bd2 {[%emt 0:00:41]} dxe4 {[%emt 0:01:42]} 18. dxe4 {[%emt 0:00:15]} Nc4 {[%emt 0:00:29]} 19. a4 {[%emt 0:17:38]} Nxb2 {[%emt 0:07:44]} 20. Rdb1 {[%emt 0:00:38]} Nc4 {[%emt 0:01:25]} 21. Be1 {[%emt 0:02:35]} Bc6 {[%emt 0:07:05]} 22. axb5 {[%emt 0:07:24]} axb5 {[%emt 0:00:15]} 23. Qf3 {[%emt 0:10:46]} Nd2 {[%emt 0:04:39]} 24. Bxd2 {[%emt 0:00:29]} Rxd2 {[%emt 0:00:08]} 25. Ng3 {[%emt 0:08:15]} c4 {[%emt 0:09:35]} 26. Ra2 {[%emt 0:03:11]} Ra8 {[%emt 0:06:39]} 27. Rxa8 {[%emt 0:01:22]} Bxa8 {[%emt 0:00:09]} 28. Bd1 {[%emt 0:02:26]} Bc5 {[%emt 0:06:19]} 29. Be2 {[%emt 0:00:19]} Qc6 {[%emt 0:00:59]} 30. Nf1 {[%emt 0:02:20]} Rc2 {[%emt 0:01:04]} 31. Rd1 {[%emt 0:02:51]} Qxe4 {[%emt 0:00:58]} 32. Rd8+ {[%emt 0:00:17]} Kh7 {[%emt 0:00:09]} 33. Rxa8 {[%emt 0:07:08]} Rxe2 {[%emt 0:00:26]} 34. Ng3 {[%emt 0:01:47]} Qb1+ {[%emt 0:01:00]} 0-1